bitfinex/quotes_ETHUSD_20230109
["timestamp","ask_amount","ask_price","bid_price","bid_amount"]
[1673276654975,25.76223277,1329.0,1328.9,0.066]
[1673276655170,25.76223277,1329.0,1328.8,0.02455823]
[1673276655380,27.11923277,1329.0,1328.8,0.02455823]
[1673276656048,31.11923277,1329.0,1328.8,0.02455823]
[1673276656625,3.79766064,1328.9,1328.8,0.02455823]
[1673276656877,33.92086998,1328.9,1328.8,0.02455823]
[1673276657086,33.92486998,1328.9,1328.8,0.02455823]
[1673276657884,35.26886998,1328.9,1328.8,0.02455823]
[1673276658461,35.83356998,1328.9,1328.8,0.02455823]
[1673276660199,4.0,1328.8,1328.5,0.02455823]
[1673276660517,2.707,1328.6,1328.5,0.02455823]
[1673276660842,11.5604413,1328.6,1328.5,0.02455823]
[1673276661080,4.0377313,1328.6,1328.5,0.02455823]
[1673276661251,4.0337313,1328.6,1328.5,0.02455823]
[1673276661456,3.21507066,1328.6,1328.5,0.02455823]
[1673276661688,10.74178066,1328.6,1328.5,0.02455823]
[1673276661983,12.14314552,1328.6,1328.5,0.02455823]
[1673276662210,4.61643552,1328.6,1328.5,0.02455823]
[1673276662423,12.13914552,1328.6,1328.5,0.02455823]
[1673276662636,23.46751616,1328.6,1328.5,0.02455823]
[1673276662947,30.99422616,1328.6,1328.5,0.02455823]
[1673276663588,23.46751616,1328.6,1328.5,0.02455823]
[1673276663806,30.99422616,1328.6,1328.5,0.02455823]
[1673276664555,8.41409616,1328.6,1328.5,0.02455823]
[1673276664746,0.004,1328.6,1328.5,22.60639823]
[1673276664961,11.52629,1328.7,1328.5,0.09055823]
[1673276665130,30.38121064,1328.7,1328.5,0.02455823]
[1673276665815,15.32795064,1328.7,1328.5,0.02455823]
[1673276666007,3.80166064,1328.7,1328.5,0.02455823]
[1673276666220,8.07067815,1328.7,1328.5,0.02455823]
[1673276666417,30.65330815,1328.7,1328.5,0.02455823]
[1673276666627,23.12697815,1328.7,1328.5,0.02455823]
[1673276666836,3.79766064,1328.6,1328.5,0.02455823]
[1673276667050,31.73479064,1328.6,1328.5,0.02455823]
[1673276667274,36.09878645,1328.6,1328.5,0.02455823]
[1673276667689,28.57207645,1328.6,1328.5,0.02455823]
[1673276668236,9.51865645,1328.6,1328.5,0.02455823]
[1673276668407,0.004,1328.6,1328.5,1.53355823]
[1673276668617,0.004,1328.7,1328.5,24.11539823]
[1673276668827,3.79766064,1328.7,1328.5,24.18139823]
[1673276669055,9.4798,1328.8,1328.5,24.18139823]
[1673276669268,13.21546064,1328.8,1328.5,24.18139823]
[1673276669449,0.004,1328.8,1328.5,28.54884849]
[1673276669658,0.5646,1329.0,1328.6,0.23]
[1673276669870,0.5646,1329.0,1328.7,0.00203668]
[1673276670861,12.0892,1329.0,1328.7,0.00203668]
[1673276671184,12.0932,1329.0,1328.7,0.00203668]
[1673276671362,4.5686,1329.0,1328.7,0.00203668]
[1673276671566,4.5646,1329.0,1328.7,0.00203668]
[1673276671764,12.08916,1329.0,1328.7,0.00203668]
[1673276671974,12.09316,1329.0,1328.7,0.00203668]
[1673276672180,16.993668,1329.0,1328.6,15.34875]
[1673276672388,24.518228,1329.0,1328.6,0.296]
[1673276672630,32.042788,1329.0,1328.6,0.23]
[1673276673076,37.18444864,1329.0,1328.5,1.59955823]
[1673276673243,7.5257,1328.8,1328.5,7.55164823]
[1673276673439,7.5257,1328.8,1328.5,0.09055823]
[1673276673440,3.79766064,1328.7,1328.5,0.09055823]
[1673276673649,3.79766064,1328.7,1328.5,0.02455823]
[1673276674117,12.92699406,1328.8,1328.5,0.02455823]
[1673276674341,16.6626547,1328.8,1328.5,0.02455823]
[1673276674695,23.6238647,1328.8,1328.5,0.02455823]
[1673276674910,35.1497747,1328.8,1328.5,0.02455823]
[1673276675227,11.32385064,1328.7,1328.5,0.02455823]
[1673276675438,14.97725611,1328.7,1328.5,0.02455823]
[1673276675714,30.02959611,1328.7,1328.5,0.02455823]
[1673276676182,22.50340611,1328.7,1328.5,0.02455823]
[1673276676534,14.97721611,1328.7,1328.5,0.02455823]
[1673276677328,3.79766064,1328.6,1328.5,0.02455823]
[1673276677660,6.44800125,1328.6,1328.5,0.02455823]
[1673276678009,6.45200125,1328.6,1328.5,0.02455823]
[1673276679036,13.97871125,1328.6,1328.5,0.02455823]
[1673276679451,6.45200125,1328.6,1328.5,0.02455823]
[1673276679998,13.97871125,1328.6,1328.5,0.02455823]
[1673276680160,10.18105061,1328.6,1328.5,0.02455823]
[1673276680376,2.65434061,1328.6,1328.5,0.02455823]
[1673276680581,0.066,1328.7,1328.5,22.60843523]
[1673276680827,9.6629,1328.8,1328.5,22.67443523]
[1673276681158,24.71431,1328.8,1328.5,7.61987523]
[1673276681323,17.18848,1328.8,1328.5,15.14715523]
[1673276681534,9.6629,1328.8,1328.5,22.67443523]
[1673276682055,22.76761964,1328.8,1328.5,0.09259523]
[1673276682264,30.29330964,1328.8,1328.5,0.02455823]
[1673276682510,37.81899964,1328.8,1328.5,0.02455823]
[1673276683128,4.0,1328.7,1328.5,0.02455823]
[1673276683478,19.05291,1328.7,1328.5,0.02455823]
[1673276683639,0.004,1328.7,1328.5,7.55176823]
[1673276683866,22.76766964,1328.8,1328.5,7.61776823]
[1673276684054,37.81966964,1328.8,1328.5,0.09055823]
[1673276684264,37.81966964,1328.8,1328.5,0.02455823]
[1673276684473,30.29353964,1328.8,1328.5,7.55165823]
[1673276684685,30.29353964,1328.8,1328.5,7.61765823]
[1673276685099,15.24203964,1328.8,1328.5,15.14493823]
[1673276685308,13.46056064,1328.8,1328.5,22.67221823]
[1673276685519,13.46056064,1328.8,1328.5,15.14493823]
[1673276685759,9.6629,1328.8,1328.5,22.67425523]
[1673276686149,0.004,1328.8,1328.5,22.67425523]
[1673276686388,0.5647,1328.9,1328.5,24.03125523]
[1673276686729,0.5647,1328.9,1328.5,28.39637599]
[1673276686883,1.68957878,1328.9,1328.5,28.39637599]
[1673276688567,0.5647,1328.9,1328.5,28.39637599]
[1673276688828,1.68957878,1328.9,1328.5,28.39637599]
[1673276689234,1.68957878,1328.9,1328.6,5.94655132]
[1673276689567,1.68957878,1328.9,1328.7,22.57845]
[1673276689568,1.12487878,1328.9,1328.7,22.57845]
[1673276689782,1.12487878,1328.9,1328.7,22.64445]
[1673276691460,2.80997644,1328.9,1328.7,22.64445]
[1673276693300,1.12487878,1328.8,1328.7,22.64445]
[1673276693559,1.12487878,1328.8,1328.7,22.87445]
[1673276693717,1.12487878,1328.8,1328.7,0.066]
[1673276694039,1.12487878,1328.8,1328.6,0.00203684]
[1673276694454,1.12487878,1328.8,1328.6,7.52861684]
[1673276694807,1.12487878,1328.8,1328.6,0.06803684]
[1673276695135,2.80997644,1328.8,1328.6,7.52852684]
[1673276695444,2.80997644,1328.8,1328.6,15.12123684]
[1673276695639,2.80997644,1328.8,1328.6,22.64794684]
[1673276695856,1.12487878,1328.8,1328.6,22.64794684]
[1673276696165,1.12487878,1328.8,1328.6,15.12123684]
[1673276696340,1.12487878,1328.8,1328.6,22.64794684]
[1673276697502,1.12487878,1328.8,1328.6,7.59452684]
[1673276697716,1.12487878,1328.8,1328.6,22.64794684]
[1673276698040,2.80997644,1328.9,1328.6,22.64794684]
[1673276698376,1.12487878,1328.9,1328.7,1.581]
[1673276698580,1.12487878,1328.9,1328.8,22.57674]
[1673276698796,1.12487878,1328.9,1328.8,22.64274]
[1673276701654,1.12687878,1328.9,1328.8,22.64074]
[1673276701852,1.12487878,1328.9,1328.8,22.64274]
[1673276702241,2.87597644,1329.0,1328.8,22.64274]
[1673276702435,2.80997644,1329.0,1328.8,22.64274]
[1673276703080,1.12487878,1328.9,1328.8,15.11716]
[1673276703297,1.12487878,1328.9,1328.8,0.066]
[1673276703483,25.38503644,1328.9,1328.7,0.066]
[1673276703695,6.33616807,1328.9,1328.6,32.38311684]
[1673276703941,2.81397644,1328.9,1328.7,22.57834]
[1673276704286,2.80997644,1328.9,1328.7,15.11819]
[1673276704438,2.80997644,1328.9,1328.7,7.59204]
[1673276704648,10.33506644,1328.9,1328.7,0.066]
[1673276704901,10.33506644,1328.9,1328.6,30.96012684]
[1673276704902,2.80997644,1328.8,1328.6,31.02437]
[1673276705218,2.80997644,1328.8,1328.6,15.11907]
[1673276705640,1.12487878,1328.8,1328.6,22.64578]
[1673276706532,1.12487878,1328.7,1328.6,7.59239]
[1673276706745,1.12487878,1328.7,1328.6,10.59239]
[1673276707213,1.12487878,1328.7,1328.6,3.066]
[1673276707432,2.80997644,1328.7,1328.6,3.0]
[1673276707742,10.33612644,1328.7,1328.6,3.0]
[1673276707901,10.34012644,1328.7,1328.6,3.0]
[1673276708530,5.45736809,1328.7,1328.5,58.0342438]
[1673276708848,13.0094683,1328.6,1328.5,0.0902438]
[1673276709212,13.0134683,1328.6,1328.5,0.02455823]
[1673276709374,15.97775977,1328.6,1328.5,0.02455823]
[1673276709583,33.27737964,1328.6,1328.5,0.02455823]
[1673276709801,34.63437964,1328.6,1328.5,0.02455823]
[1673276710051,32.94928198,1328.6,1328.5,0.02455823]
[1673276710211,35.75698688,1328.6,1328.5,0.02455823]
[1673276710422,32.94928198,1328.6,1328.5,0.02455823]
[1673276711262,34.63929264,1328.6,1328.5,0.02455823]
[1673276711768,32.94928198,1328.6,1328.5,0.02455823]
[1673276712312,34.30628198,1328.6,1328.5,0.02455823]
[1673276712522,37.11398688,1328.6,1328.5,0.02455823]
[1673276712780,35.9961654,1328.6,1328.5,0.02455823]
[1673276713006,34.30628198,1328.6,1328.5,0.02455823]
[1673276713191,35.99567606,1328.6,1328.5,0.02455823]
[1673276713520,28.46896606,1328.6,1328.5,0.02455823]
[1673276714098,35.99567606,1328.6,1328.5,0.02455823]
[1673276714324,28.46896606,1328.6,1328.5,0.02455823]
[1673276714535,35.99567606,1328.6,1328.5,0.02455823]
[1673276714723,20.94225606,1328.6,1328.5,0.02455823]
[1673276714938,35.99567606,1328.6,1328.5,0.02455823]
[1673276715415,28.47096606,1328.6,1328.5,0.02455823]
[1673276715602,20.94225606,1328.6,1328.5,0.02455823]
[1673276715940,35.99567606,1328.6,1328.5,0.02455823]
[1673276716455,34.30628198,1328.6,1328.5,0.02455823]
[1673276716832,22.58355,1328.4,1328.3,0.02455823]
[1673276717042,39.68392977,1328.4,1328.3,0.02455823]
[1673276717253,35.3196534,1328.4,1328.3,0.02455823]
[1673276717684,4.0,1328.3,1328.2,0.02936977]
[1673276717935,32.86586094,1328.3,1328.2,0.02936977]
[1673276718128,32.86986094,1328.3,1328.2,0.02936977]
[1673276718318,38.77599334,1328.3,1328.2,0.02936977]
[1673276718940,4.0,1328.2,1328.1,0.04401252]
[1673276719145,3.79766064,1328.2,1328.1,0.04401252]
[1673276719826,18.85562064,1328.2,1328.1,0.04401252]
[1673276720038,26.38860064,1328.2,1328.1,0.04401252]
[1673276720257,31.08190197,1328.2,1328.1,0.04401252]
[1673276721705,8.49496197,1328.2,1328.1,0.04401252]
[1673276722455,26.38860064,1328.2,1328.1,0.04401252]
[1673276722974,33.46116789,1328.2,1328.1,0.04401252]
[1673276723366,42.15511602,1328.2,1328.1,0.04401252]
[1673276724209,43.84407148,1328.2,1328.1,1.252e-05]
[1673276724418,4.0,1328.1,1328.0,0.05013044]
[1673276724667,35.30831064,1328.1,1328.0,0.05013044]
[1673276724947,35.31231064,1328.1,1328.0,0.05013044]
[1673276730988,36.66931064,1328.1,1328.0,0.05013044]
[1673276731356,48.97310491,1328.1,1328.0,0.00013044]
[1673276731718,57.69324289,1328.1,1328.0,0.00013044]
[1673276732033,67.70334289,1328.1,1328.0,0.00013044]
[1673276732927,67.70334289,1328.1,1328.0,0.51016122]
[1673276733247,7.943,1327.9,1327.8,8.34e-05]
[1673276733458,57.72741431,1327.9,1327.8,8.34e-05]
[1673276733775,58.52251431,1327.9,1327.8,8.34e-05]
[1673276734354,66.05319431,1327.9,1327.8,8.34e-05]
[1673276734896,66.05519431,1327.9,1327.8,8.34e-05]
[1673276735058,66.05319431,1327.9,1327.8,8.34e-05]
[1673276737055,19.53936064,1327.9,1327.8,8.34e-05]
[1673276737311,53.43208064,1327.9,1327.8,8.34e-05]
[1673276737479,57.75947489,1327.9,1327.8,8.34e-05]
[1673276737936,56.41547489,1327.9,1327.8,8.34e-05]
[1673276738258,28.13904064,1327.9,1327.8,8.34e-05]
[1673276738473,3.80166064,1327.9,1327.8,8.34e-05]
[1673276738667,3.79766064,1327.9,1327.8,8.34e-05]
[1673276740015,18.85902064,1327.9,1327.8,8.34e-05]
[1673276740204,26.39370064,1327.9,1327.8,8.34e-05]
[1673276740887,11.33234064,1327.9,1327.8,8.34e-05]
[1673276741100,13.2247917,1327.9,1327.8,8.34e-05]
[1673276742696,0.062,1328.0,1327.9,1.11753738]
[1673276742883,0.004,1328.1,1327.9,1.11957046]
[1673276743061,3.79766064,1328.1,1327.9,1.11957046]
[1673276743265,3.79766064,1328.1,1327.9,8.65020046]
[1673276743493,3.79766064,1328.1,1327.9,8.71588603]
[1673276743945,3.79766064,1328.1,1327.9,1.18525603]
[1673276744111,3.79766064,1328.1,1327.9,8.65003046]
[1673276744320,3.79766064,1328.1,1327.9,8.71571603]
[1673276744530,3.79766064,1328.1,1327.9,1.18525603]
[1673276744774,3.79766064,1328.1,1327.9,1.11957046]
[1673276745186,3.79766064,1328.1,1327.9,8.65013046]
[1673276745383,3.79766064,1328.1,1327.9,8.71581603]
[1673276745614,3.79766064,1328.1,1327.9,16.24649603]
[1673276745929,3.79766064,1328.1,1327.9,25.13417603]
[1673276747100,8.436,1328.2,1328.1,7.52955]
[1673276747296,0.004,1328.2,1328.1,22.65433557]
[1673276747505,10.33716748,1328.5,1328.1,22.65433557]
[1673276747688,4.91849266,1328.4,1328.1,22.65433557]
[1673276747893,3.79766064,1328.3,1328.1,22.65433557]
[1673276752632,3.79766064,1328.3,1328.1,15.12478557]
[1673276752986,3.79766064,1328.3,1328.1,22.65433557]
[1673276753218,4.91849266,1328.3,1328.1,22.65433557]
[1673276753350,4.91849266,1328.3,1328.1,15.12478557]
[1673276753566,4.91849266,1328.3,1328.1,22.65433557]
[1673276753567,5.65760095,1328.3,1328.1,22.65433557]
[1673276753911,0.004,1328.3,1328.2,1.357]
[1673276754123,2.87578748,1328.5,1328.2,29.62750246]
[1673276754336,1.12083202,1328.5,1328.3,1.345]
[1673276754545,1.12083202,1328.5,1328.4,7.52785]
[1673276754875,1.12083202,1328.5,1328.4,25.14923557]
[1673276755100,1.12083202,1328.6,1328.4,24.00523557]
[1673276757086,1.12083202,1328.6,1328.4,1.42168557]
[1673276757246,2.80978748,1328.6,1328.4,1.356]
[1673276757460,1.12083202,1328.6,1328.4,1.356]
[1673276757893,5.43126547,1328.6,1328.4,1.356]
[1673276758103,5.43526547,1328.6,1328.4,8.8838]
[1673276758316,5.43526547,1328.6,1328.4,0.06568557]
[1673276758509,20.48898547,1328.6,1328.3,1.41968557]
[1673276758749,5.43526547,1328.6,1328.4,7.52785]
[1673276758962,5.43526547,1328.6,1328.4,15.12138557]
[1673276759358,5.43526547,1328.6,1328.4,0.06568557]
[1673276759597,7.12422093,1328.6,1328.3,19.47569557]
[1673276759772,7.12422093,1328.6,1328.3,11.94778557]
[1673276759981,14.65100093,1328.6,1328.3,11.94797557]
[1673276760296,7.12422093,1328.6,1328.3,27.00479557]
[1673276760505,3.79766064,1328.5,1328.3,1.41968557]
[1673276760756,3.79766064,1328.4,1328.2,1.41468557]
[1673276760971,3.79766064,1328.4,1328.2,7.52868]
[1673276761158,3.79766064,1328.4,1328.2,22.65210557]
[1673276761554,4.91849266,1328.4,1328.2,22.65210557]
[1673276761761,4.91849266,1328.4,1328.2,7.59436557]
[1673276762023,6.09505629,1328.4,1328.2,7.59436557]
[1673276762230,6.09905629,1328.4,1328.2,7.59436557]
[1673276762662,6.09905629,1328.4,1328.2,15.12334557]
[1673276762830,3.79766064,1328.3,1328.2,0.06568557]
[1673276763040,7.52898,1328.2,1328.0,45.98972333]
[1673276763250,7.53298,1328.2,1328.0,0.06772333]
[1673276763498,0.004,1328.2,1328.0,7.53209776]
[1673276763715,14.56646829,1328.3,1328.0,15.12790333]
[1673276764022,5.91713627,1328.3,1328.0,15.12790333]
[1673276764344,5.91713627,1328.3,1328.0,16.47090333]
[1673276764553,5.91713627,1328.3,1328.0,24.00102333]
[1673276764860,5.91713627,1328.3,1328.0,16.47090333]
[1673276765265,5.91713627,1328.3,1328.0,24.00102333]
[1673276765477,5.91713627,1328.3,1328.0,16.47090333]
[1673276765695,7.03796829,1328.3,1328.0,24.00102333]
[1673276766025,7.03796829,1328.3,1328.0,16.47090333]
[1673276766181,14.56649829,1328.3,1328.0,8.94078333]
[1673276766395,14.56649829,1328.3,1328.0,1.41072333]
[1673276766396,3.79766064,1328.2,1328.0,1.41072333]
[1673276766605,3.79766064,1328.2,1328.0,1.34503776]
[1673276766845,14.29533647,1328.2,1328.0,0.00203776]
[1673276767089,22.94928849,1328.2,1328.0,0.00203776]
[1673276767268,30.47840849,1328.2,1328.0,0.00203776]
[1673276767442,11.32722064,1328.1,1327.9,51.75062295]
[1673276767652,18.86107064,1328.1,1327.9,51.75062295]
[1673276767862,7.25581849,1328.1,1327.9,59.28114295]
[1673276768105,7.25581849,1328.1,1327.9,51.24442295]
[1673276768340,7.25581849,1328.1,1327.9,43.71374295]
[1673276768544,14.78540849,1328.1,1327.9,1.17925645]
[1673276768711,3.79766064,1328.0,1327.9,1.11357088]
[1673276768921,6.89419869,1328.0,1327.9,1.11357088]
[1673276769278,3.80166064,1328.0,1327.9,8.64425088]
[1673276769491,0.066,1328.1,1327.9,23.77129645]
[1673276769653,1.12083202,1328.2,1327.9,23.77129645]
[1673276769861,4.91849266,1328.2,1327.9,23.77129645]
[1673276770075,7.26533547,1328.2,1328.0,4.0]
[1673276770420,7.26933547,1328.2,1328.0,7.53006]
[1673276770596,7.26933547,1328.2,1328.0,7.59574557]
[1673276771016,7.26933547,1328.2,1328.0,7.59565557]
[1673276771573,3.79766064,1328.1,1328.0,0.06568557]
[1673276771751,4.52459419,1328.1,1327.9,16.23994645]
[1673276771966,4.52459419,1328.1,1327.9,23.77042645]
[1673276772177,4.52459419,1328.1,1327.9,16.23994645]
[1673276772589,4.52459419,1328.1,1327.9,8.70958645]
[1673276773168,12.05415419,1328.1,1327.9,1.17925645]
[1673276773482,13.17898621,1328.1,1327.9,1.11357088]
[1673276774067,3.79766064,1328.0,1327.9,1.11357088]
[1673276774288,20.17579926,1328.0,1327.9,1.11357088]
[1673276774518,5.11955926,1328.0,1327.9,1.11357088]
[1673276774729,12.64967926,1328.0,1327.9,1.11357088]
[1673276774959,13.77051128,1328.0,1327.9,1.11357088]
[1673276775324,31.08480674,1328.0,1327.9,1.11357088]
[1673276775535,30.51970674,1328.0,1327.9,1.11357088]
[1673276775857,36.42880674,1328.0,1327.9,1.11357088]
[1673276776099,47.8054766,1328.0,1327.9,1.11357088]
[1673276776325,4.0,1327.9,1327.8,8.34e-05]
[1673276776536,39.14714951,1327.9,1327.8,8.34e-05]
[1673276776706,40.84010497,1327.9,1327.8,8.34e-05]
[1673276776924,14.01806497,1327.9,1327.8,8.34e-05]
[1673276777256,7.18051731,1327.9,1327.8,8.34e-05]
[1673276777431,5.49156185,1327.9,1327.8,8.34e-05]
[1673276777639,22.24187731,1327.9,1327.8,8.34e-05]
[1673276778277,29.77255731,1327.9,1327.8,8.34e-05]
[1673276778488,28.08360185,1327.9,1327.8,8.34e-05]
[1673276778686,35.23547696,1327.9,1327.8,8.34e-05]
[1673276779122,34.11067575,1327.9,1327.8,8.34e-05]
[1673276779360,34.34067575,1327.9,1327.8,8.34e-05]
[1673276780071,36.59261636,1327.9,1327.8,8.34e-05]
[1673276780282,34.34067575,1327.9,1327.8,8.34e-05]
[1673276780538,19.27931575,1327.9,1327.8,8.34e-05]
[1673276780756,26.80999575,1327.9,1327.8,8.34e-05]
[1673276780911,19.83948818,1327.9,1327.8,8.34e-05]
[1673276781124,33.77557575,1327.9,1327.8,8.34e-05]
[1673276781789,26.24489575,1327.9,1327.8,8.34e-05]
[1673276781981,10.38968963,1327.9,1327.8,8.34e-05]
[1673276782200,4.92676998,1327.9,1327.8,8.34e-05]
[1673276782496,19.98412998,1327.9,1327.8,8.34e-05]
[1673276782708,19.98812998,1327.9,1327.8,8.34e-05]
[1673276783276,27.51880998,1327.9,1327.8,8.34e-05]
[1673276787856,29.20776544,1327.9,1327.8,8.34e-05]
[1673276788068,34.53563591,1327.9,1327.8,8.34e-05]
[1673276788943,33.41052657,1327.9,1327.8,8.34e-05]
[1673276789315,34.76483394,1327.9,1327.8,8.34e-05]
[1673276789985,17.78451848,1327.9,1327.8,8.34e-05]
[1673276790209,4.92596801,1327.9,1327.8,8.34e-05]
[1673276790522,27.51400801,1327.9,1327.8,8.34e-05]
[1673276790730,19.98732801,1327.9,1327.8,8.34e-05]
[1673276791116,12.45664801,1327.9,1327.8,8.34e-05]
[1673276791312,3.80166064,1327.9,1327.8,8.34e-05]
[1673276791527,32.16289145,1328.0,1327.8,25.4598334]
[1673276791528,0.066,1328.0,1327.8,25.4598334]
[1673276791787,2.81326283,1328.1,1327.9,1.354]
[1673276792097,4.92196801,1328.1,1327.9,8.88466]
[1673276792260,4.92196801,1328.1,1327.9,13.27439723]
[1673276792261,1.12430737,1328.1,1327.9,13.27439723]
[1673276792473,1.19030737,1328.2,1328.0,7.03205166]
[1673276792718,1.78895546,1328.3,1328.1,20.74015166]
[1673276792719,0.1,1328.3,1328.1,20.74015166]
[1673276793046,0.1,1328.3,1328.2,2.7]
[1673276793209,0.1,1328.3,1328.2,17.75796]
[1673276793420,0.1,1328.3,1328.2,10.29466557]
[1673276793621,0.1,1328.3,1328.2,2.76568557]
[1673276793957,1.22430737,1328.3,1328.2,1.357]
[1673276794196,1.22430737,1328.3,1328.1,1.41568557]
[1673276794414,1.22430737,1328.3,1328.1,1.35]
[1673276794775,1.22430737,1328.3,1328.1,8.87954]
[1673276795032,1.22430737,1328.3,1328.1,8.94522557]
[1673276795360,0.1,1328.3,1328.2,2.714]
[1673276795678,0.1,1328.3,1328.2,21.77196]
[1673276795860,0.1,1328.3,1328.2,2.77968557]
[1673276796071,1.22430737,1328.3,1328.2,2.714]
[1673276796253,1.22430737,1328.3,1328.2,10.24298]
[1673276796460,1.22430737,1328.3,1328.2,7.59466557]
[1673276797316,6.10313644,1328.3,1328.2,0.06568557]
[1673276797544,6.10313644,1328.3,1328.0,1.35470125]
[1673276797545,8.35907705,1328.3,1328.0,7.52963]
[1673276797757,6.61120119,1328.2,1328.0,15.12509557]
[1673276798094,0.004,1328.2,1328.1,1.357]
[1673276798403,0.1,1328.3,1328.2,1.513]
[1673276798718,0.1,1328.3,1328.2,28.95871235]
[1673276798937,0.1,1328.3,1328.2,29.02439792]
[1673276799106,0.1,1328.3,1328.2,32.02439792]
[1673276800052,0.1,1328.3,1328.2,27.70034626]
[1673276800261,0.1,1328.3,1328.2,39.55337792]
[1673276800716,0.1,1328.3,1328.2,35.22932626]
[1673276801318,0.1,1328.3,1328.2,39.55337792]
[1673276802455,4.00689607,1328.7,1328.3,4.0]
[1673276802456,2.87954055,1328.7,1328.3,4.0]
[1673276802620,1.12458509,1328.7,1328.6,2.701]
[1673276802834,1.12458509,1328.7,1328.6,25.28113]
[1673276803154,1.12458509,1328.7,1328.6,25.34681557]
[1673276803310,1.34347902,1328.8,1328.6,29.67086723]
[1673276803652,1.19058509,1328.9,1328.7,12.1787123]
[1673276803868,0.066,1329.0,1328.8,34.9284523]
[1673276804191,1.12458509,1329.2,1328.9,15.1217123]
[1673276804514,1.12458509,1329.2,1329.0,22.80335]
[1673276804721,1.68895546,1329.2,1329.1,1.35]
[1673276804882,3.94089607,1329.2,1329.1,1.35]
[1673276805092,2.81166913,1329.2,1329.1,8.87388]
[1673276805307,2.31794061,1329.3,1329.1,8.93956557]
[1673276805308,2.87766913,1329.3,1329.1,8.93956557]
[1673276805633,2.81166913,1329.3,1329.1,1.41568557]
[1673276805842,2.81166913,1329.3,1329.1,1.35]
[1673276806055,1.75495546,1329.4,1329.2,2.695]
[1673276806284,0.066,1329.5,1329.3,31.62431984]
[1673276806461,0.17511508,1329.6,1329.4,4.32405166]
[1673276806827,5.08e-06,1329.6,1329.5,30.08648]
[1673276806979,5.08e-06,1329.6,1329.5,32.85216557]
[1673276807342,5.08e-06,1329.6,1329.5,25.33054557]
[1673276807727,5.08e-06,1329.6,1329.5,25.34330587]
[1673276807944,5.08e-06,1329.6,1329.5,33.46501817]
[1673276808286,5.08e-06,1329.6,1329.5,37.45137535]
[1673276808498,0.7413191,1329.8,1329.5,40.71077535]
[1673276808718,9.1e-06,1329.8,1329.6,33.3517123]
[1673276808887,0.007,1330.2,1329.7,38.20225898]
[1673276809074,0.007,1330.2,1329.8,11.3375406]
[1673276809291,0.007,1330.2,1329.9,30.07696]
[1673276809553,0.007,1330.2,1330.0,1.357]
[1673276809711,0.007,1330.2,1329.8,4.41268557]
[1673276809919,0.007,1330.2,1329.7,0.06568557]
[1673276809920,3.79766064,1330.1,1329.7,0.06568557]
[1673276810184,3.79766064,1330.0,1329.6,16.48328557]
[1673276810550,4.0,1329.9,1329.6,17.84028557]
[1673276810811,0.066,1330.0,1329.6,25.36130557]
[1673276811021,3.79766064,1330.0,1329.6,17.84028557]
[1673276811248,3.79766064,1330.0,1329.6,18.28328557]
[1673276811555,4.0,1329.9,1329.6,18.28328557]
[1673276811721,3.79766064,1329.8,1329.6,0.06568557]
[1673276811938,3.79766064,1329.7,1329.2,0.091]
[1673276812128,7.79766064,1329.6,1329.1,29.871]
[1673276812336,10.16406064,1329.6,1329.1,37.40032877]
[1673276812919,0.5684,1329.6,1329.2,1.802]
[1673276813078,0.5644,1329.6,1329.3,15.05080795]
[1673276813289,0.5643,1329.7,1329.3,16.93180795]
[1673276813649,0.5643,1329.7,1329.3,1.88648795]
[1673276813801,8.08481,1329.7,1329.3,1.79548795]
[1673276814016,21.94344864,1329.7,1329.3,0.00548795]
[1673276814240,4.0,1329.6,1329.3,0.00548795]
[1673276814448,12.80964214,1330.3,1329.5,3.79766064]
[1673276814699,0.054,1329.7,1329.6,25.56315]
[1673276814869,0.7414025,1330.4,1330.0,0.342]
[1673276815083,0.7414025,1330.4,1330.1,3.79766064]
[1673276815295,2.5e-06,1330.4,1330.0,7.95148]
[1673276815506,2.5e-06,1330.4,1330.1,2.032]
[1673276815735,2.5e-06,1330.4,1330.2,7.51752]
[1673276816016,2.5e-06,1330.4,1330.2,0.091]
[1673276816226,2.5e-06,1330.4,1330.1,10.091]
[1673276816435,2.5e-06,1330.4,1330.1,0.091]
[1673276816668,0.5641,1330.3,1330.0,0.342]
[1673276818374,0.5641,1330.3,1330.0,7.86025]
[1673276818622,0.5641,1330.3,1330.0,0.433]
[1673276818745,0.5641,1330.3,1330.0,7.8607]
[1673276818956,4.5680025,1330.4,1330.1,0.0166235]
[1673276819163,4.5640025,1330.4,1330.1,0.0166235]
[1673276820791,6.3540025,1330.4,1330.0,0.342]
[1673276821109,1.806,1330.3,1330.0,0.342]
[1673276821536,0.5641,1330.2,1330.0,0.342]
[1673276821914,0.5641,1330.3,1330.0,15.37946]
[1673276822126,0.5641,1330.3,1330.0,15.47046]
[1673276822556,0.5641,1330.3,1330.2,7.51766]
[1673276822793,0.0660025,1330.4,1330.2,15.12632]
[1673276822794,2.5e-06,1330.4,1330.2,15.12632]
[1673276823006,2.5e-06,1330.4,1330.2,16.93232]
[1673276823215,2.5e-06,1330.4,1330.2,16.94894224]
[1673276823959,0.007,1330.6,1330.4,0.0019975]
[1673276824180,0.300907,1330.7,1330.5,35.38715913]
[1673276824327,0.300907,1330.7,1330.6,4.02766064]
[1673276824536,0.300907,1330.7,1330.6,19.05846064]
[1673276824857,0.066,1331.0,1330.6,33.14946064]
[1673276825065,1.3051025,1331.1,1330.9,1.806]
[1673276825066,0.7414025,1331.1,1330.9,1.806]
[1673276825320,0.7414025,1331.1,1331.0,16.82828]
[1673276825492,0.6914025,1331.1,1331.0,20.14928]
[1673276825703,0.6914025,1331.1,1331.0,20.96355289]
[1673276826258,0.64362534,1332.0,1331.0,40.97189225]
[1673276826611,8.2471525,1332.4,1331.0,40.97189225]
[1673276826612,0.86742589,1332.8,1332.4,7.50521]
[1673276826904,0.8626529,1333.6,1332.5,47.14335355]
[1673276827059,0.06,1333.6,1333.2,13.97628743]
[1673276827270,0.123528,1334.0,1333.4,1.8]
[1673276827540,22.06189,1333.5,1333.2,0.06]
[1673276827721,17.239,1333.2,1332.9,0.021]
[1673276827899,24.73989,1333.2,1332.5,0.099]
[1673276828115,0.5629,1333.1,1331.9,7.50778]
[1673276828357,1.799,1332.3,1331.6,7.943]
[1673276828541,15.01055,1332.4,1331.5,17.161]
[1673276828772,7.50731,1332.1,1331.5,0.066]
[1673276828982,0.066,1332.1,1331.3,5.033]
[1673276829200,8.07093,1332.0,1331.3,3.227]
[1673276829523,0.6294,1332.0,1331.8,14.0]
[1673276829695,8.07092,1332.0,1331.8,0.014]
[1673276829911,8.07092,1332.0,1331.5,2.42793965]
[1673276829912,7.50874,1331.8,1331.5,16.42793965]
[1673276830103,7.50976,1331.6,1331.5,0.066]